Cogmind - Beta 13 @@@ ROGUE MODE // 2024.03.19 @ 02:18:56 Player: H3-RMN Result: Destroyed by Y-45 Defender with Heavy Assault Rifle Performance ------------- Evolutions (2) 1000 Regions Visited (4) 800 Robots Destroyed (77) 385 Value Destroyed (2529) 2529 Prototype IDs (0) 0 Alien Tech Used (0) 0 Bonus (12) 12 TOTAL SCORE: 4726 Bonus ------- High Alert Combat Kills 12 Cogmind --------- Core Integrity 0/550 Matter 300/300 Energy 95/100 System Corruption 1% Temperature Cool (0) Movement Treading (145) Location -8/Materials Parts ------- > --- POWER (1) -------- (None) > --- PROPULSION (2) --- Advanced Treads > --- UTILITY (6) ------ Improved Heat Sink Medium Storage Unit Weight Redist. System > --- WEAPON (2) ------- Makeshift Spear > --- INVENTORY (10) --- Light Treads Improved VTOL Module Armor Integrity Analyzer Cobbler Unit Gauss Rifle Shock Bomb Launcher Multitool Great Maul Scythe Peak State ------------ > --- POWER ------------ Improved Ion Engine > --- PROPULSION ------- Light Treads Advanced Treads > --- UTILITY ---------- Improved Heat Sink Improved Cooling System Medium Storage Unit Weight Redist. System Improved Terrain Scanner Improved Shield Generator > --- WEAPON ----------- Assault Cannon Makeshift Spear > --- INVENTORY -------- Light Treads Improved VTOL Module Armor Integrity Analyzer Cobbler Unit Gauss Rifle Shock Bomb Launcher Multitool Great Maul Scythe [Rating: 32] Favorites ----------- Power Subdweller Power Source Engine Subdweller Power Source Power Core Light Nuclear Core Propulsion Light Treads Treads Light Treads Leg Aluminum Leg Wheel Wheel Utility Humpback Device Improved Heat Sink Storage Humpback Processor Visual Processing Unit Protection Scrap Shield Weapon Subdweller Machine Gun Energy Gun Subdweller Laser Energy Cannon Beam Cannon Ballistic Gun Subdweller Machine Gun Ballistic Cannon Assault Cannon Launcher Rocket Launcher Piercing Weapon Makeshift Spear Build | -11 -10 -10 -10 -8 ------- Run | Yrd Mat Min Sub Mat Slots Evolved 4 | . . . . 4 Power . | . . . . . Propulsion . | . . . . . Utility 4 | . . . . 4 Weapon . | . . . . . Parts Attached 79 | 7 3 2 28 39 Power 9 | 1 . 1 1 6 Engine 8 | 1 . 1 1 5 Core 1 | . . . . 1 Reactor . | . . . . . Propulsion 23 | 2 . . 9 12 Treads 10 | 1 . . 2 7 Leg 2 | . . . . 2 Wheel 11 | 1 . . 7 3 Hover . | . . . . . Flight . | . . . . . Utility 25 | 2 . . 5 18 Device 11 | 1 . . . 10 Storage 5 | 1 . . 2 2 Processor 1 | . . . . 1 Hackware . | . . . . . Protection 8 | . . . 3 5 Artifact . | . . . . . Weapon 22 | 2 3 1 13 3 Energy Gun 1 | . . . . 1 Energy Cannon 4 | . . . 4 . Ballistic Gun 7 | 2 . . 5 . Ballistic Cannon 3 | . 2 . . 1 Launcher 6 | . 1 1 4 . Special Weapon . | . . . . . Impact Weapon . | . . . . . Slashing Weapon . | . . . . . Piercing Weapon 1 | . . . . 1 Special Melee Weapon . | . . . . . Unidentified Prototypes . | . . . . . Parts Lost 26 | . . 1 4 21 Power 2 | . . . . 2 Propulsion 9 | . . . 4 5 Utility 12 | . . 1 . 11 Weapon 3 | . . . . 3 Highest Loss Streak 6 | . . 1 2 6 To Critical Strikes 1 | . . . . 1 Average Slot Usage (%) 85 | . 100 90 86 77 Engine 12 | . 14 14 14 8 Treads 9 | . 14 14 9 8 Wheel 15 | . 14 14 18 8 Device 5 | . 14 5 . 15 Storage 9 | . 14 14 9 9 Protection 5 | . . . 6 8 Energy Cannon 9 | . . . 13 4 Ballistic Gun 11 | . 18 14 13 4 Ballistic Cannon 1 | . 9 2 . 2 Launcher 1 | . . 11 1 . Piercing Weapon 1 | . . . . 4 Naked Turns . | . . . . . Heaviest Build 247 | 14 16 17 217 247 Greatest Support 48 | 20 20 10 40 48 Greatest Overweight (x) 21 | . 1 1 21 6 Average Overweight (x) 3 | . . 1 5 1 Largest Inventory Capacity 35 | 8 8 8 35 35 Average Capacity 18 | 6 8 8 21 19 Most Carried 23 | 3 8 8 22 23 Average Carried 11 | 2 7 8 11 12 Final Capacity 35 | 8 8 8 35 10 Final Carried 20 | 3 8 8 20 10 Class Distribution -------------------- 43% | Hauler-Mutant 26% | Mutant 19% | Subdweller-Mutant 10% | Scavenger-Mutant Dominant Class ---------------- Mutant | -10/Materials Mutant | -10/Mines Hauler-Mutant | -10/Subcaves Hauler-Mutant | -8/Materials Resources | -11 -10 -10 -10 -8 ----------- Run | Yrd Mat Min Sub Mat Matter Collected 2266 | 295 363 77 652 879 Remotely . | . . . . . Salvage Created 2440 | 20 535 48 611 1226 Parts 150 | 2 35 6 38 69 Haulers Intercepted 2 | . 1 . . 1 Recyclers Shooed 1 | 1 . . . . Parts Field Recycled . | . . . . . Retrieved Matter . | . . . . . Parts Self-Destructed 11 | . . . 11 . Prevented . | . . . . . Kills | -11 -10 -10 -10 -8 ------- Run | Yrd Mat Min Sub Mat Combat Hostiles Destroyed 67 | . 18 5 18 26 Melee 8 | . . . . 8 Guns 20 | . 6 1 4 9 Cannons 18 | . 4 . 5 9 AOE 21 | . 8 4 9 . Classes Destroyed 12 | 1 5 . 4 2 Builder 4 | . 1 1 . 2 Tunneler 2 | 1 . . . 1 Hauler 2 | . 1 . . 1 Operator 2 | . 1 . . 1 Swarmer 14 | . 6 3 4 1 Grunt 35 | . 12 2 3 18 Sentry 5 | . . . 1 4 Specialist 2 | . . . . 2 Heavy 1 | . . . . 1 Artisan 1 | . . . 1 . Cobbler 2 | . . . 2 . Subdweller 10 | . . . 10 . Best Kill Streak 11 | 1 5 4 4 11 Combat Bots Only 8 | . 5 3 4 8 Max Kills in Single Turn 5 | 1 5 2 4 2 Gunslinging . | . . . . . Exploded 5 | . 5 2 4 . Melee 1 | . . . . 1 Uniques/NPCs Destroyed . | . . . . . Combat | -11 -10 -10 -10 -8 -------- Run | Yrd Mat Min Sub Mat Hostile Shots Fired 386 | . 35 1 76 274 Missed 96 | . 8 . 27 61 Damage Taken 4568 | . 298 55 1018 3197 Core 795 | . 60 32 144 559 Absorbed by Shields 142 | . . . . 142 Core Remaining (%) 52 | 100 . . 5 . Volleys Fired 256 | 9 37 13 96 101 Largest 2 | 2 2 1 2 2 Hottest 140 | 40 55 33 110 140 Shots Fired 342 | 18 72 13 125 114 Gun 188 | 18 46 7 54 63 Cannon 129 | . 24 . 54 51 Launcher 25 | . 2 6 17 . Special . | . . . . . Kinetic 211 | 18 70 7 54 62 Thermal 106 | . . . 54 52 Explosive 25 | . 2 6 17 . Electromagnetic . | . . . . . Robot Hit Streak 18 | 5 9 2 11 18 Robot Miss Streak 5 | 1 4 3 3 5 Penetration Max . | . . . . . Secondary Targets 1 | . 1 . . . Max Gunslinging Chain 1 | . 1 . . . Shots Hit Robots 217 | 12 46 3 59 97 Core Hits 118 | 3 27 6 34 48 Critical Kills 1 | . . . . 1 Critical Parts Destroyed . | . . . . . Critical Strikes 7 | . . . . 7 Destroy 1 | . . . . 1 Blast 1 | . . . . 1 Impale 5 | . . . . 5 Melee Attacks 33 | . . . . 33 Impact . | . . . . . Slashing . | . . . . . Piercing 33 | . . . . 33 Sneak Attacks 3 | . . . . 3 Combat Hostiles . | . . . . . Follow-up Attacks . | . . . . . Damage Inflicted 6231 | 109 1160 462 1951 2549 Guns 1868 | 109 378 38 355 988 Cannons 1635 | . 227 . 562 846 Explosions 2013 | . 555 424 1034 . Melee 713 | . . . . 713 Ramming 2 | . . . . 2 Kinetic 2217 | 109 605 38 355 1110 Thermal 1900 | . 390 224 562 724 Explosive 1399 | . 165 200 1034 . Electromagnetic . | . . . . . Impact . | . . . . . Slashing . | . . . . . Piercing 713 | . . . . 713 Highest Corruption 1 | . . . . 1 Average Corruption 1 | . . . . 1 Corruption Purged . | . . . . . Corruption Blocked . | . . . . . Overload Shots . | . . . . . Overflow Damage 175 | . 7 53 22 93 Projectiles 7 | . 7 . . . Explosions 75 | . . 53 22 . Melee 93 | . . . . 93 Knockbacks 5 | . 3 . . 2 Impact . | . . . . . Kinetic 5 | . 3 . . 2 Secondary . | . . . . . Self-Inflicted Damage 112 | . 13 50 49 . Shots 4 | . 1 2 1 . Rammed 1 | . . . . 1 Targets Rammed 2 | . . . . 2 Kicked . | . . . . . Crushed 1 | . . . . 1 Highest Temperature 520 | . 13 . . 520 Average Temperature 200 | . 5 . . 243 Received Heat Transfer 1766 | . 114 . 201 1451 Effects 7 | . . . . 7 Shutdowns 1 | . . . . 1 Energy Bleed 2 | . . . . 2 Interference 2 | . . . . 2 Matter Decay 2 | . . . . 2 Siege Activations . | . . . . . Robots Corrupted . | . . . . . Combat Hostiles . | . . . . . Parts Fried . | . . . . . Impact Corruptions . | . . . . . Robots Melted . | . . . . . Combat Hostiles . | . . . . . Parts Melted 1 | . . . 1 . Heat Transferred 2520 | . 250 250 1147 873 Parts Sabotaged . | . . . . . Parts Stolen . | . . . . . Parts Stripped . | . . . . . Power Chain Reactions . | . . . . . Alert | -11 -10 -10 -10 -8 ------- Run | Yrd Mat Min Sub Mat Peak Influence 447 | 5 447 373 . 271 Initial 165 | . 3 165 . 26 Average 147 | 1 266 296 . 83 Maximum Alert Level 2 | . 2 1 . 1 Low Security (%) 63 | 100 20 25 . 83 Level 1 34 | . 65 74 . 16 Level 2 2 | . 14 . . . Level 3 . | . . . . . Level 4 . | . . . . . Level 5 . | . . . . . High Security . | . . . . . Max Security . | . . . . . Squads Dispatched 14 | . 5 . . 9 Investigation 6 | . 4 . . 2 Extermination . | . . . . . Reinforcement 6 | . 1 . . 5 Assault . | . . . . . Garrison 2 | . . . . 2 Intercept . | . . . . . Searches Triggered . | . . . . . Construction Impeded . | . . . . . Haulers Reinforced . | . . . . . Active Scanning Responses . | . . . . . Cargo Convoy Interrupts . | . . . . . Stealth | -11 -10 -10 -10 -8 --------- Run | Yrd Mat Min Sub Mat Distress Signals 6 | . 4 1 . 1 Communications Jammed . | . . . . . Distress Signals . | . . . . . Times Spotted 79 | . 22 1 17 39 Peak Tracking Total 10 | . 5 1 6 10 Tactical Retreats 3 | . 1 . 2 . Traps | -11 -10 -10 -10 -8 ------- Run | Yrd Mat Min Sub Mat Traps Triggered 4 | . 1 . 3 . Indirectly . | . . . . . Trap Hack Attempts . | . . . . . Triggered . | . . . . . Disarmed . | . . . . . Reprogrammed . | . . . . . Reused . | . . . . . Traps Extracted . | . . . . . Installed . | . . . . . Triggered . | . . . . . Most Traps Carried 1 | . . . 1 1 Objects Rigged 1 | . 1 . . . Exploded 1 | . 1 . . . Machines | -11 -10 -10 -10 -8 ---------- Run | Yrd Mat Min Sub Mat Machines Disabled 4 | . 1 3 . . Max in Single Turn 3 | . 1 3 . . Machines Repaired . | . . . . . Machines Dismantled . | . . . . . Machines Sabotaged . | . . . . . Overloaded Fab Kills . | . . . . . Hacking | -11 -10 -10 -10 -8 --------- Run | Yrd Mat Min Sub Mat Machines Accessed 13 | . 6 . 1 6 Terminals 10 | . 5 . . 5 Fabricators . | . . . . . Repair Stations . | . . . . . Recycling Units 1 | . 1 . . . Scanalyzers . | . . . . . Garrison Access 1 | . . . . 1 Total Hacks 50 | . 32 . 2 16 Successful 29 | . 21 . 2 6 Failed 20 | . 10 . . 10 Catastrophic 5 | . 2 . . 3 Database Lockouts 1 | . 1 . . . Manual 30 | . 18 . . 12 Terminals 42 | . 28 . . 14 Fabricators . | . . . . . Repair Stations . | . . . . . Recycling Units 4 | . 4 . . . Scanalyzers . | . . . . . Garrison Access 2 | . . . . 2 Terminal Hacks 13 | . 9 . 2 2 Record 2 | . . . 2 . Robot Analysis 1 | . 1 . . . Branch Access Points 1 | . . . . 1 Emergency Access Points 2 | . 2 . . . Terminal Index 2 | . 1 . . 1 Alert Level 1 | . 1 . . . Locate Traps 2 | . 2 . . . Zone Layout 2 | . 2 . . . Fabricator Hacks . | . . . . . Repair Station Hacks . | . . . . . Recycling Unit Hacks 2 | . 2 . . . Report Inventory 1 | . 1 . . . Retrieve Components 1 | . 1 . . . Scanalyzer . | . . . . . Garrison Access Hacks . | . . . . . Unauthorized Hacks 14 | . 10 . . 4 Terminals 12 | . 8 . . 4 Track 4 | . 3 . . 1 Botnet 3 | . 2 . . 1 Detonate 1 | . 1 . . . Disrupt 2 | . 1 . . 1 Operators 2 | . 1 . . 1 Fabricators . | . . . . . Repair Stations . | . . . . . Recycling Units 2 | . 2 . . . Mask 1 | . 1 . . . Tunnel 1 | . 1 . . . Scanalyzers . | . . . . . Garrison Access . | . . . . . Data Cores Recovered . | . . . . . Used . | . . . . . Hacking Detections 11 | . 5 . . 6 Full Trace Events 4 | . 2 . . 2 Feedback Events 1 | . . . . 1 Corruption 1 | . . . . 1 Feedback Blocked . | . . . . . Robot Schematics Acquired . | . . . . . Robots Built . | . . . . . Authchips . | . . . . . Time . | . . . . . Total Robot Build Rating . | . . . . . Part Schematics Acquired . | . . . . . Parts Built . | . . . . . Authchips . | . . . . . Time . | . . . . . Total Part Build Rating . | . . . . . Parts Repaired . | . . . . . Time . | . . . . . Parts Recycled . | . . . . . Recycled Matter . | . . . . . Retrieved Matter . | . . . . . Retrieved Components 3 | . 3 . . . Parts Scanalyzed . | . . . . . Part Schematics Acquired . | . . . . . Parts Damaged . | . . . . . Bothacking | -11 -10 -10 -10 -8 ------------ Run | Yrd Mat Min Sub Mat Used RIF Installer . | . . . . . Robots Hacked . | . . . . . Non-combat . | . . . . . Combat . | . . . . . Robot Hacks Applied . | . . . . . Relay Couplers Released . | . . . . . Fabnet Peak Effective % . | . . . . . Robots Rewired . | . . . . . Allies Hacked . | . . . . . Hacks Repelled . | . . . . . Allies | -11 -10 -10 -10 -8 -------- Run | Yrd Mat Min Sub Mat Total Allies . | . . . . . Largest Group . | . . . . . Highest-Rated Group . | . . . . . Highest-Rated Ally . | . . . . . Total Orders . | . . . . . Ally Attacks . | . . . . . Total Damage . | . . . . . Kills . | . . . . . Allies Corrupted . | . . . . . Allies Melted . | . . . . . Intel | -11 -10 -10 -10 -8 ------- Run | Yrd Mat Min Sub Mat Robot Analysis Total 1 | . 1 . . . Derelict Logs Recovered 3 | . . 2 1 . Drone Launches . | . . . . . Drone Recoveries . | . . . . . Exploration | -11 -10 -10 -10 -8 ------------- Run | Yrd Mat Min Sub Mat Turns Passed 7271 | 112 555 438 4377 1789 Spaces Moved 3749 | 48 280 425 2413 583 Core 14 | 1 . . 4 9 Treads 453 | 42 57 . . 354 Legs 13 | . . . . 13 Wheels 3269 | 5 223 425 2409 207 Hover . | . . . . . Flight . | . . . . . Fastest Speed 50 | 50 95 95 95 107 Average Speed 148 | 149 108 95 161 153 Slowest Speed 395 | 160 160 95 395 350 Overloaded Moves . | . . . . . Propulsion Burnouts . | . . . . . Robots Hopped . | . . . . . Cave-ins Triggered . | . . . . . Exploration Rate (%) 56 | 4 46 90 98 46 Regions Visited 4 Branch Regions 2 Pre-discovered Areas 2 | . 1 . 1 . Known Exits Taken . | . . . . . Unknown Exits Taken 4 | 1 1 1 1 . Scrap Searched 11 | . . 2 9 . Spaces Dug 32 | . . . 32 . Terrain Destroyed 196 | . 27 60 99 10 Melee . | . . . . . Projectile 11 | . . . 1 10 AOE 185 | . 27 60 98 . Terrain Rammed . | . . . . . Walls Destroyed . | . . . . . Machines Disabled . | . . . . . Actions | -11 -10 -10 -10 -8 --------- Run | Yrd Mat Min Sub Mat Total 5054 | 69 463 447 2755 1320 Wait 833 | 3 130 5 166 529 Move 3745 | 47 279 424 2412 583 Hop . | . . . . . Pick Up 60 | 3 9 1 32 15 Fast Attach 35 | 7 1 . 6 21 Attach 15 | . . . 6 9 Detach 1 | . . . . 1 Swap 29 | . 2 2 16 9 Drop 40 | . 5 2 16 17 Fire 256 | 9 37 13 96 101 Melee 33 | . . . . 33 Ram . | . . . . . Kick . | . . . . . Crush 2 | . . . . 2 Escape Stasis . | . . . . . Rewire . | . . . . . Trap . | . . . . . Miscellaneous 5 | . . . 5 . Route ------- -11/Scrapyard -10/Materials (discovered 2 exits: [*Min x2]) -10/Mines (discovered 3 exits: [*Mat x2] / *Sub) -10/Subcaves (discovered 2 exits: *Mat x2) -8/Materials (discovered 2 exits: *Fac x2) History --------- Turn | Location | Event 12 | -11/Scrapyard | Discovered new exit (range 15) 113 | -11/Scrapyard | Entered Materials 115 | -10/Materials | Central database locked down 279 | -10/Materials | Discovered new exit (range 15) 315 | -10/Materials | Build established: Mutant 438 | -10/Materials | Discovered new exit (range 14) 668 | -10/Materials | Entered Mines 681 | -10/Mines | Learned Materials emergency access door positions 706 | -10/Mines | Discovered new exit (range 5) 710 | -10/Mines | Received a Rocket Launcher from a helpful Derelict 845 | -10/Mines | Discovered new exit (range 9) 1033 | -10/Mines | Found a hidden stash of uninstalled traps 1103 | -10/Mines | Discovered new exit (range 4) 1106 | -10/Mines | Entered Subcaves 1178 | -10/Subcaves | Discovered new exit (range 11) 1194 | -10/Subcaves | Core integrity fell below 50% 1546 | -10/Subcaves | Shifting Twisted Machinery released Mak. Spear 1572 | -10/Subcaves | Shifting Twisted Machinery released Sub. Laser 1616 | -10/Subcaves | Disturbed a concealed Subdweller 1738 | -10/Subcaves | Shifting Twisted Machinery released Sub. Monowheel 1739 | -10/Subcaves | A swath of the cavern ceiling suddenly collapsed 1870 | -10/Subcaves | Learned location of Zion (-7) 1870 | -10/Subcaves | Met a Zionite searching for "candidates" 1918 | -10/Subcaves | Ambushed by angry Subdweller bent on revenge 2059 | -10/Subcaves | Shifting Twisted Machinery released Sub. Beam Cannon 2119 | -10/Subcaves | Build established: Subdweller-Mutant 2262 | -10/Subcaves | Visited Clippyterm 2890 | -10/Subcaves | Build established: Hauler-Mutant 4621 | -10/Subcaves | A swath of the cavern ceiling suddenly collapsed 4684 | -10/Subcaves | Core integrity fell below 20% 4690 | -10/Subcaves | Discovered new exit (range 16) 4743 | -10/Subcaves | Learned location of 1 exit from Materials 5183 | -10/Subcaves | Build established: Subdweller-Mutant 5483 | -10/Subcaves | Entered Materials 5483 | -8/Materials | Evolved 4 slots: Utility x4 5484 | -8/Materials | Identified exit to Factory 5732 | -8/Materials | Build established: Hauler-Mutant 6236 | -8/Materials | Discovered exit to Factory (range 16) 6333 | -8/Materials | Lost 3 parts (2u1w) 6458 | -8/Materials | Core integrity fell below 50% 6485 | -8/Materials | Lost 6 parts (1p2n2u1w) 6814 | -8/Materials | Build established: Scavenger-Mutant 6892 | -8/Materials | Lost 3 parts (1n2u) 6901 | -8/Materials | Destroyed 8 combat bots 7244 | -8/Materials | Core integrity fell below 20% 7272 | -8/Materials | Destroyed by Y-45 Defender with Heavy Assault Rifle Last Messages --------------- 07254_ Destroyed Particle Gun. 07254_ G-47 Trooper destroyed. 07254_ Imp. Cooling System destroyed. 07255_ K-01 Serf collects debris. 07257_ Imp. Shield Generator destroyed. 07259_ K-01 Serf collects debris. 07260_ Critical hit (Burn: +37). 07261_ Y-45 Defender suffers critical hit (Impale). 07263_ S-10 Pest destroyed. 07263_ Critical hit (Destroy). 07263_ Lgt. Treads destroyed. 07263_ K-01 Serf collects debris. 07266_ K-01 Serf cleans the Garrison Access. 07267_ K-01 Serf collects debris. 07270_ Imp. Ion Engine destroyed. 07271_ K-01 Serf collects debris. 07272_ Y-45 Defender suffers critical hit (Impale). 07272_ Y-45 Defender destroyed. Map ----- +----------------------------------------------------+ | ! # ######### ########## ## | | # ##?#?????# ##! | | ###### #???????## ## | | ?????# ##????#??# ! ## | | ?????# ##?##????######## | | ?????# """ """ """ """ #?????#??#?????## | | ?????# """ """ """ """ #########?#?#???###### | | ?????# """ """ """ """ # ! #??#???#?????? | | ?????# + [[ #????#???????# | | ?????# # [ * #??#?????????? | | ?????# """ """ """ """ #########??##????????? | | ?????# """ """ """ """ ##???#??#????????????? | | ###### """ """ """ """ #??#??#?????????????? | | ##??????????????????? | | #???#?#?????????????? | | o #??#??#?????????????? | | ######+######+###### ### !%= #?#?????????????????? | | # [ !# ## ###+####??????????????????? | | # *# """ ## # [[= ###????????????????? | | # #????? ## + # ?????????? | | # #?????? # #[* + ?????????? | | # """ """ #???????# #%""" # ?? ??????? | | # """ """ #?? ????# #=""" #?# ####???????????? | | # """ """ #????#??# # """ #?#?#??????????????? | | # #???????# # =Y! #?? ???? ?????????? | | ###########???????# #]@%== #?? ???? ??????????? | | ???????????????"??###### ="" #??????????????????? | | ???????????????????????#g"G #??????????????????? | | ?????????????"????????##=k"" #??????????????????? | | ????????????? ??????#??# k #??????????????????? | | ???????????????????????########?"????????????????? | | ??????????????????????##?????????????????????????? | | ??????????????????? ?????????????????????????????? | | ?????????????????????????????????????????????????? | | ?????????????????????????????? ?? ???????????????? | | ??????????????????????"??????????????????????????? | | ?????????????????????????????????????????????????? | | ?????????????????????????????????????????????????? | | ?????????????????????????????????????????????????? | | ?????????????????????????????????????????????????? | | ?????????????????????????????????????????????????? | | ?????????????????????????????????????????????????? | | ?????????????????????????????????????????????????? | | ?????????????????????????????????????????????????? | | ?????????????????????????????????????????????????? | | ?????????????????????????????????????????????????? | | ?????????????????????????????????????????????????? | | ?????????????????????????????????????????????????? | | ?????????????????????????????????????????????????? | | ?????????????????????????????????????????????????? | +----------------------------------------------------+ Best States ------------- Heat Dissipation 72 Energy Generation 15 Energy Capacity 265 Matter Stores 450 Matter Capacity 450 Sight Range 16 Terrain Scan Range 16 Terrain Scan Density 10 Additional Mass Support 6 Armor Coverage 900 Evasion (%) 55 Recoil Reduction 2 Item Schematics ----------------- None Robot Schematics ------------------ None Fabricated ------------ Nothing Alien Tech Used ----------------- None Achievements -------------- None Challenges ------------ None Game ------ Seed ProjectionDisposablePod Manual? 0 Play Time 00:47:57 Cumulative 620.0 hours Start 2024.03.19 @ 01:32:28 End 2024.03.19 @ 02:18:56 Sessions 1 Manual Loads 0 Difficulty Rogue Special Mode None Game No. 236 Rogue 212 Adventurer 3 Explorer 21 Win Type - Total 14 Types 9/2/1/1/0/1/0/0/0 Lore% 89 Gallery% 95 Achievement% 82 Wizard Run 0 Options --------- Layout 2 ASCII 0 Keyboard 0 Movement Numpad Keybinds 0 Fullscreen 2 Font 24/Smallcaps Map View 50x44 Zoom Use 0% Tactical HUD 1 Map Filters NONE Filters NONE Steam 1 RUN: b7bad288-8eda-4656-b5f7-a34a4d3318fb